[Event "*** Titled Tuesday Blitz"]
[Site "Chess.com"]
[Date "2020.10.20"]
[Round "11"]
[White "VladaSviridova"]
[Black "SchieberSpieler"]
[Result "1/2-1/2"]
[WhiteElo "2275"]
[BlackElo "2421"]
[TimeControl "180+1"]
[EndTime "12:07:52 PDT"]
[Termination "Game drawn by agreement"]

1. d4 {[%clk 0:03:00.9]} 1... d5 {[%clk 0:03:00.1]} 2. c4 {[%clk 0:03:01]} 2...
e6 {[%clk 0:03:00.4]} 3. Nf3 {[%clk 0:03:01.2]} 3... Nf6 {[%clk 0:03:01.1]} 4.
Nc3 {[%clk 0:03:01.5]} 4... c5 {[%clk 0:03:01.2]} 5. cxd5 {[%clk 0:03:00.9]}
5... Nxd5 {[%clk 0:03:02.1]} 6. e4 {[%clk 0:02:59.3]} 6... Nxc3 {[%clk
0:03:02.6]} 7. bxc3 {[%clk 0:02:59.7]} 7... cxd4 {[%clk 0:03:03.5]} 8. cxd4
{[%clk 0:03:00]} 8... Bb4+ {[%clk 0:03:04.2]} 9. Bd2 {[%clk 0:02:59.9]} 9...
Bxd2+ {[%clk 0:03:04.9]} 10. Qxd2 {[%clk 0:02:59.9]} 10... O-O {[%clk
0:03:05.8]} 11. Rc1 {[%clk 0:02:51.7]} 11... b6 {[%clk 0:03:05.1]} 12. Bd3
{[%clk 0:02:47.1]} 12... Bb7 {[%clk 0:03:05.2]} 13. O-O {[%clk 0:02:46.7]} 13...
Nd7 {[%clk 0:03:05.6]} 14. Qf4 {[%clk 0:02:28.9]} 14... Rc8 {[%clk 0:03:03.7]}
15. Rxc8 {[%clk 0:02:14.1]} 15... Qxc8 {[%clk 0:03:04.6]} 16. Rc1 {[%clk
0:02:13.5]} 16... Qb8 {[%clk 0:03:05.3]} 17. Qxb8 {[%clk 0:02:09.2]} 17... Rxb8
{[%clk 0:03:06.2]} 18. Rc7 {[%clk 0:02:06.1]} 18... Nf6 {[%clk 0:03:06.5]} 19.
Ng5 {[%clk 0:01:25.8]} 19... Ne8 {[%clk 0:02:31.5]} 20. Rd7 {[%clk 0:01:11.7]}
20... h6 {[%clk 0:02:10.9]} 21. Nxf7 {[%clk 0:01:00.5]} 21... Nf6 {[%clk
0:02:06.7]} 22. Rc7 {[%clk 0:00:58.4]} 22... Bxe4 {[%clk 0:02:06.7]} 23. Bxe4
{[%clk 0:00:48.3]} 23... Nxe4 {[%clk 0:02:07.6]} 24. f3 {[%clk 0:00:48.2]} 24...
Ng5 {[%clk 0:01:40.1]} 25. Nxg5 {[%clk 0:00:47.8]} 25... hxg5 {[%clk 0:01:41]}
26. Rxa7 {[%clk 0:00:48]} 26... Rd8 {[%clk 0:01:41.7]} 27. Rb7 {[%clk
0:00:47.2]} 27... Rxd4 {[%clk 0:01:41.1]} 28. Rxb6 {[%clk 0:00:47.4]} 28... Rd1+
{[%clk 0:01:30.1]} 29. Kf2 {[%clk 0:00:46.7]} 29... Rd2+ {[%clk 0:01:30.7]} 30.
Kg3 {[%clk 0:00:47.2]} 30... Rxa2 {[%clk 0:01:31.4]} 31. Rxe6 {[%clk 0:00:47.1]}
31... Kf7 {[%clk 0:01:32]} 32. Re5 {[%clk 0:00:46.3]} 32... Kf6 {[%clk
0:01:31.2]} 33. Rb5 {[%clk 0:00:46.3]} 33... Kg6 {[%clk 0:01:31]} 34. Kh3 {[%clk
0:00:44.6]} 34... Rc2 {[%clk 0:01:28.6]} 35. g3 {[%clk 0:00:37.2]} 35... Rc3
{[%clk 0:01:24.9]} 36. Kg4 {[%clk 0:00:21.1]} 36... Rc4+ {[%clk 0:01:24.9]} 37.
f4 {[%clk 0:00:21]} 37... gxf4 {[%clk 0:01:25.8]} 38. gxf4 {[%clk 0:00:21.4]}
38... Rc2 {[%clk 0:01:20.2]} 39. Rb6+ {[%clk 0:00:20.7]} 39... Kh7 {[%clk
0:01:17.4]} 40. h4 {[%clk 0:00:20.6]} 40... Rg2+ {[%clk 0:01:16.4]} 41. Kf5
{[%clk 0:00:20.6]} 41... Rh2 {[%clk 0:01:16.5]} 42. Kg4 {[%clk 0:00:20]} 42...
Rg2+ {[%clk 0:01:16.9]} 43. Kf3 {[%clk 0:00:20.2]} 43... Rh2 {[%clk 0:01:13.6]}
44. Kg3 {[%clk 0:00:20]} 44... Rh1 {[%clk 0:01:14.2]} 45. Ra6 {[%clk 0:00:19.7]}
45... Rg1+ {[%clk 0:01:11.7]} 46. Kf3 {[%clk 0:00:19.2]} 46... Rh1 {[%clk
0:01:11.6]} 47. Kg4 {[%clk 0:00:19.5]} 47... Rg1+ {[%clk 0:01:11.6]} 48. Kf5
{[%clk 0:00:18.7]} 48... Rh1 {[%clk 0:01:11.3]} 49. Kg4 {[%clk 0:00:17.7]}
1/2-1/2

[Event "*** Titled Tuesday Blitz"]
[Site "Chess.com"]
[Date "2020.10.20"]
[Round "11"]
[White "TimofeevAr"]
[Black "GothamChess"]
[Result "0-1"]
[WhiteElo "2768"]
[BlackElo "2630"]
[TimeControl "180+1"]
[EndTime "12:07:56 PDT"]
[Termination "GothamChess won by resignation"]

1. e4 {[%clk 0:03:00.9]} 1... c6 {[%clk 0:03:00.2]} 2. d4 {[%clk 0:03:00.5]}
2... d5 {[%clk 0:03:01.1]} 3. f3 {[%clk 0:03:01]} 3... g6 {[%clk 0:02:58.7]} 4.
Nc3 {[%clk 0:03:00.5]} 4... Bg7 {[%clk 0:02:59.1]} 5. e5 {[%clk 0:02:57.3]} 5...
Nh6 {[%clk 0:02:56.6]} 6. f4 {[%clk 0:02:56.5]} 6... f6 {[%clk 0:02:56.4]} 7.
Nf3 {[%clk 0:02:56.7]} 7... Bg4 {[%clk 0:02:55]} 8. Be3 {[%clk 0:02:54.6]} 8...
Qb6 {[%clk 0:02:51.5]} 9. Na4 {[%clk 0:02:27.5]} 9... Qc7 {[%clk 0:02:50.9]} 10.
Be2 {[%clk 0:02:24.3]} 10... Nf5 {[%clk 0:02:48.2]} 11. Bf2 {[%clk 0:02:24.4]}
11... Bxf3 {[%clk 0:02:47.9]} 12. Bxf3 {[%clk 0:02:24.4]} 12... fxe5 {[%clk
0:02:46.9]} 13. fxe5 {[%clk 0:02:23.1]} 13... Nd7 {[%clk 0:02:38.7]} 14. O-O
{[%clk 0:02:16.6]} 14... O-O {[%clk 0:02:37.5]} 15. Nc3 {[%clk 0:02:02.6]} 15...
e6 {[%clk 0:02:37.3]} 16. Ne2 {[%clk 0:02:01.8]} 16... Bh6 {[%clk 0:02:34.2]}
17. Qd3 {[%clk 0:02:01.1]} 17... c5 {[%clk 0:02:33]} 18. c3 {[%clk 0:01:59.4]}
18... Rac8 {[%clk 0:02:29.5]} 19. g4 {[%clk 0:01:51.4]} 19... c4 {[%clk
0:02:25.8]} 20. Qc2 {[%clk 0:01:50]} 20... Ne3 {[%clk 0:02:01.4]} 21. Bxe3
{[%clk 0:01:49.5]} 21... Bxe3+ {[%clk 0:02:02.3]} 22. Kg2 {[%clk 0:01:49.9]}
22... Qd8 {[%clk 0:01:51.6]} 23. Ng3 {[%clk 0:01:43.8]} 23... b5 {[%clk
0:01:44.4]} 24. Qe2 {[%clk 0:01:43.4]} 24... Bf4 {[%clk 0:01:43.4]} 25. a4
{[%clk 0:01:40.8]} 25... b4 {[%clk 0:01:43]} 26. a5 {[%clk 0:01:36.5]} 26... Rb8
{[%clk 0:01:39.8]} 27. Rf2 {[%clk 0:01:33.7]} 27... bxc3 {[%clk 0:01:38.1]} 28.
bxc3 {[%clk 0:01:34]} 28... Rb3 {[%clk 0:01:38.8]} 29. Qc2 {[%clk 0:01:33.8]}
29... Qe7 {[%clk 0:01:31.9]} 30. Raf1 {[%clk 0:01:31.4]} 30... Be3 {[%clk
0:01:20.3]} 31. Re2 {[%clk 0:01:29.9]} 31... Bh6 {[%clk 0:01:11]} 32. Ref2
{[%clk 0:01:19.6]} 32... Be3 {[%clk 0:01:05.8]} 33. Re2 {[%clk 0:01:19.5]} 33...
Bh6 {[%clk 0:01:05.8]} 34. Ra1 {[%clk 0:01:16.8]} 34... Rfb8 {[%clk 0:00:57.2]}
35. Rf2 {[%clk 0:01:05.4]} 35... Be3 {[%clk 0:00:50.7]} 36. Re2 {[%clk
0:01:05.3]} 36... Bf4 {[%clk 0:00:50.3]} 37. Rf2 {[%clk 0:01:03.9]} 37... Nf8
{[%clk 0:00:45.5]} 38. Ra2 {[%clk 0:00:59.8]} 38... Rb1 {[%clk 0:00:32.3]} 39.
Ne2 {[%clk 0:00:55.2]} 39... Bxh2 {[%clk 0:00:29.2]} 40. Kxh2 {[%clk 0:00:44.8]}
40... Qh4+ {[%clk 0:00:29.3]} 41. Kg2 {[%clk 0:00:45.3]} 41... Rh1 {[%clk
0:00:29.5]} 42. Bxd5 {[%clk 0:00:39.5]} 42... Rh2+ {[%clk 0:00:28.5]} 0-1

[Event "*** Titled Tuesday Blitz"]
[Site "Chess.com"]
[Date "2020.10.20"]
[Round "11"]
[White "aisha_zakirova"]
[Black "alexwinter25"]
[Result "1-0"]
[WhiteElo "2195"]
[BlackElo "2332"]
[TimeControl "180+1"]
[EndTime "12:08:01 PDT"]
[Termination "aisha_zakirova won by resignation"]

1. d4 {[%clk 0:03:00.3]} 1... d5 {[%clk 0:03:00.1]} 2. c4 {[%clk 0:02:58.8]}
2... e6 {[%clk 0:02:59.9]} 3. Nf3 {[%clk 0:02:57.5]} 3... Nf6 {[%clk 0:03:00.2]}
4. Nc3 {[%clk 0:02:55.4]} 4... c6 {[%clk 0:02:59.9]} 5. Bg5 {[%clk 0:02:50.4]}
5... Nbd7 {[%clk 0:02:59.7]} 6. e3 {[%clk 0:02:49.3]} 6... Be7 {[%clk
0:02:59.6]} 7. cxd5 {[%clk 0:02:45.4]} 7... exd5 {[%clk 0:02:59.5]} 8. Bd3
{[%clk 0:02:44.6]} 8... O-O {[%clk 0:02:59.5]} 9. Qc2 {[%clk 0:02:42.9]} 9...
Re8 {[%clk 0:02:59.3]} 10. O-O {[%clk 0:02:42.4]} 10... Nf8 {[%clk 0:02:59]} 11.
h3 {[%clk 0:02:37.5]} 11... Ne4 {[%clk 0:02:58.5]} 12. Bf4 {[%clk 0:02:29.3]}
12... f5 {[%clk 0:02:46.9]} 13. a3 {[%clk 0:02:23.1]} 13... Ng6 {[%clk
0:02:46.7]} 14. Bh2 {[%clk 0:02:21.3]} 14... Bd6 {[%clk 0:02:44.1]} 15. Bxd6
{[%clk 0:02:18.7]} 15... Qxd6 {[%clk 0:02:45]} 16. b4 {[%clk 0:02:18.7]} 16...
Qf6 {[%clk 0:02:37.1]} 17. b5 {[%clk 0:02:15.3]} 17... Nh4 {[%clk 0:02:35.6]}
18. Nxh4 {[%clk 0:02:09]} 18... Qxh4 {[%clk 0:02:36.5]} 19. bxc6 {[%clk
0:01:58.6]} 19... bxc6 {[%clk 0:02:36.5]} 20. Ne2 {[%clk 0:01:55.4]} 20... Bd7
{[%clk 0:02:21.3]} 21. Rab1 {[%clk 0:01:51.4]} 21... Re7 {[%clk 0:02:11.1]} 22.
Rb7 {[%clk 0:01:49.6]} 22... Ng5 {[%clk 0:01:52.5]} 23. Rfb1 {[%clk 0:01:28.7]}
23... Rf8 {[%clk 0:01:36.4]} 24. Rb8 {[%clk 0:01:16.3]} 24... Ne4 {[%clk
0:01:34]} 25. Rxf8+ {[%clk 0:01:14]} 25... Kxf8 {[%clk 0:01:34.9]} 26. Bxe4
{[%clk 0:01:12.1]} 26... fxe4 {[%clk 0:01:31.9]} 27. Qc5 {[%clk 0:01:04.1]}
27... Kf7 {[%clk 0:01:25.2]} 28. Rb7 {[%clk 0:01:00.4]} 28... Qh5 {[%clk
0:01:08.1]} 29. Nf4 {[%clk 0:00:54.6]} 29... Qd1+ {[%clk 0:01:07.6]} 30. Kh2
{[%clk 0:00:52.8]} 30... Qd2 {[%clk 0:01:07.9]} 31. Qd6 {[%clk 0:00:49.6]} 31...
g6 {[%clk 0:01:01.9]} 32. Rxd7 {[%clk 0:00:48.6]} 32... Rxd7 {[%clk 0:01:00]}
33. Qxd7+ {[%clk 0:00:48.5]} 33... Kf6 {[%clk 0:00:59.3]} 34. Qxh7 {[%clk
0:00:42.6]} 34... Qxf2 {[%clk 0:00:57.3]} 35. Qxg6+ {[%clk 0:00:41.5]} 35... Ke7
{[%clk 0:00:57.5]} 36. Qe6+ {[%clk 0:00:39.2]} 36... Kd8 {[%clk 0:00:55.3]} 37.
Qd6+ {[%clk 0:00:38.1]} 37... Kc8 {[%clk 0:00:53.6]} 38. Qxc6+ {[%clk
0:00:37.9]} 38... Kb8 {[%clk 0:00:53.5]} 39. Nxd5 {[%clk 0:00:35.3]} 39... Qf7
{[%clk 0:00:47.1]} 40. Qd6+ {[%clk 0:00:34.1]} 40... Kb7 {[%clk 0:00:45.8]} 41.
Nf4 {[%clk 0:00:32.1]} 41... Kc8 {[%clk 0:00:39.3]} 42. Qe6+ {[%clk 0:00:31.1]}
1-0

[Event "*** Titled Tuesday Blitz"]
[Site "Chess.com"]
[Date "2020.10.20"]
[Round "11"]
[White "Evachess2006"]
[Black "DonBroca"]
[Result "0-1"]
[WhiteElo "1622"]
[BlackElo "2141"]
[TimeControl "180+1"]
[EndTime "12:08:03 PDT"]
[Termination "DonBroca won on time"]

1. e4 {[%clk 0:02:27.9]} 1... c5 {[%clk 0:02:57.6]} 2. c3 {[%clk 0:02:24]} 2...
Nf6 {[%clk 0:02:56.9]} 3. e5 {[%clk 0:02:22.5]} 3... Nd5 {[%clk 0:02:48.8]} 4.
d4 {[%clk 0:02:23.4]} 4... cxd4 {[%clk 0:02:48.5]} 5. Nf3 {[%clk 0:02:24.3]}
5... Nc6 {[%clk 0:02:48.3]} 6. cxd4 {[%clk 0:02:20.9]} 6... e6 {[%clk
0:02:47.8]} 7. Nc3 {[%clk 0:02:07.3]} 7... Nb6 {[%clk 0:02:37.9]} 8. Bd3 {[%clk
0:02:00.8]} 8... d6 {[%clk 0:02:17.6]} 9. exd6 {[%clk 0:01:56.3]} 9... Qxd6
{[%clk 0:02:17.9]} 10. Be3 {[%clk 0:01:40.5]} 10... Be7 {[%clk 0:02:16.7]} 11.
O-O {[%clk 0:01:25]} 11... O-O {[%clk 0:02:07.7]} 12. Ne4 {[%clk 0:01:13.9]}
12... Qc7 {[%clk 0:02:04.3]} 13. Rc1 {[%clk 0:01:11.8]} 13... Nd5 {[%clk
0:02:03.6]} 14. Nc5 {[%clk 0:00:59.5]} 14... Bf6 {[%clk 0:01:34.4]} 15. Ne4
{[%clk 0:00:46]} 15... Bd7 {[%clk 0:01:12.3]} 16. Nxf6+ {[%clk 0:00:42.6]} 16...
Nxf6 {[%clk 0:01:13.2]} 17. Ne5 {[%clk 0:00:37.1]} 17... Qd6 {[%clk 0:01:00.8]}
18. Nxc6 {[%clk 0:00:31]} 18... Bxc6 {[%clk 0:00:59.9]} 19. Qe2 {[%clk
0:00:30.7]} 19... Rfd8 {[%clk 0:00:54.8]} 20. Bb5 {[%clk 0:00:23.5]} 20... Rac8
{[%clk 0:00:51.1]} 21. Bxc6 {[%clk 0:00:18]} 21... Rxc6 {[%clk 0:00:52]} 22.
Rxc6 {[%clk 0:00:17.6]} 22... Qxc6 {[%clk 0:00:52.2]} 23. Rc1 {[%clk 0:00:17.7]}
23... Qd5 {[%clk 0:00:52.7]} 24. a3 {[%clk 0:00:16.1]} 24... Qb3 {[%clk
0:00:39.4]} 25. Qc2 {[%clk 0:00:11]} 25... Qxc2 {[%clk 0:00:33.4]} 26. Rxc2
{[%clk 0:00:11.9]} 26... Nd5 {[%clk 0:00:33.4]} 27. Kf1 {[%clk 0:00:09.7]} 27...
Kf8 {[%clk 0:00:32.9]} 28. Ke2 {[%clk 0:00:09]} 28... Ke7 {[%clk 0:00:32.7]} 29.
Kd3 {[%clk 0:00:07.2]} 29... Kd6 {[%clk 0:00:30]} 30. Rc1 {[%clk 0:00:05.4]}
30... Rd7 {[%clk 0:00:28.2]} 31. g3 {[%clk 0:00:04.4]} 31... Rc7 {[%clk
0:00:26.2]} 0-1

[Event "*** Titled Tuesday Blitz"]
[Site "Chess.com"]
[Date "2020.10.20"]
[Round "11"]
[White "Borsuk_Konstantin"]
[Black "Chessalary"]
[Result "0-1"]
[WhiteElo "2564"]
[BlackElo "2392"]
[TimeControl "180+1"]
[EndTime "12:08:05 PDT"]
[Termination "Chessalary won on time"]

1. d4 {[%clk 0:03:00.9]} 1... Nf6 {[%clk 0:02:51.3]} 2. c4 {[%clk 0:03:00.5]}
2... g6 {[%clk 0:02:51.1]} 3. Nc3 {[%clk 0:03:00.2]} 3... Bg7 {[%clk 0:02:51.5]}
4. e4 {[%clk 0:02:59.8]} 4... O-O {[%clk 0:02:49.7]} 5. Be3 {[%clk 0:02:59]}
5... d6 {[%clk 0:02:48.1]} 6. f3 {[%clk 0:02:59.2]} 6... Nbd7 {[%clk 0:02:36.5]}
7. Qd2 {[%clk 0:02:55.2]} 7... e5 {[%clk 0:02:33.7]} 8. d5 {[%clk 0:02:55.1]}
8... Nh5 {[%clk 0:02:31.2]} 9. O-O-O {[%clk 0:02:52.7]} 9... f5 {[%clk
0:02:28.8]} 10. exf5 {[%clk 0:02:49.6]} 10... gxf5 {[%clk 0:02:29.7]} 11. Nge2
{[%clk 0:02:46.4]} 11... f4 {[%clk 0:02:25.9]} 12. Bf2 {[%clk 0:02:46.1]} 12...
Ndf6 {[%clk 0:02:22.8]} 13. Ne4 {[%clk 0:02:42.2]} 13... Nxe4 {[%clk 0:02:19.1]}
14. fxe4 {[%clk 0:02:43.1]} 14... Bg4 {[%clk 0:02:15.2]} 15. Ng1 {[%clk
0:02:29.4]} 15... Bxd1 {[%clk 0:02:04.4]} 16. Qxd1 {[%clk 0:02:29.1]} 16... f3
{[%clk 0:02:03.8]} 17. Nxf3 {[%clk 0:02:27.3]} 17... Nf4 {[%clk 0:02:02.2]} 18.
g3 {[%clk 0:02:17.4]} 18... Ng6 {[%clk 0:01:57.5]} 19. Bh3 {[%clk 0:02:00.1]}
19... Qf6 {[%clk 0:01:53.9]} 20. Bf5 {[%clk 0:01:59.3]} 20... Ne7 {[%clk
0:01:52.5]} 21. g4 {[%clk 0:01:57.7]} 21... Nxf5 {[%clk 0:01:51.5]} 22. gxf5
{[%clk 0:01:58]} 22... Bh6+ {[%clk 0:01:51.2]} 23. Kc2 {[%clk 0:01:57.7]} 23...
Kh8 {[%clk 0:01:49.4]} 24. Bh4 {[%clk 0:01:51.1]} 24... Qf7 {[%clk 0:01:48.4]}
25. h3 {[%clk 0:01:48.5]} 25... Rg8 {[%clk 0:01:48]} 26. Nh2 {[%clk 0:01:47.5]}
26... Rg2+ {[%clk 0:01:46.5]} 27. Kb3 {[%clk 0:01:47.2]} 27... b5 {[%clk
0:01:40.7]} 28. cxb5 {[%clk 0:01:37.1]} 28... Rb8 {[%clk 0:01:40.3]} 29. a4
{[%clk 0:01:37.1]} 29... c6 {[%clk 0:01:31.5]} 30. Ng4 {[%clk 0:01:34.3]} 30...
cxb5 {[%clk 0:01:25.3]} 31. a5 {[%clk 0:01:26.4]} 31... Qc7 {[%clk 0:01:18.4]}
32. Qd3 {[%clk 0:00:41.9]} 32... Qxa5 {[%clk 0:00:49.9]} 33. Bf6+ {[%clk
0:00:12.2]} 33... Bg7 {[%clk 0:00:49.2]} 34. Bxg7+ {[%clk 0:00:12]} 34... Kxg7
{[%clk 0:00:50.1]} 35. f6+ {[%clk 0:00:09.3]} 35... Kf8 {[%clk 0:00:50]} 0-1

[Event "*** Titled Tuesday Blitz"]
[Site "Chess.com"]
[Date "2020.10.20"]
[Round "11"]
[White "ajdemipopushi"]
[Black "Ladislav1969"]
[Result "0-1"]
[WhiteElo "2339"]
[BlackElo "2432"]
[TimeControl "180+1"]
[EndTime "12:08:14 PDT"]
[Termination "Ladislav1969 won on time"]

1. Nf3 {[%clk 0:03:00.9]} 1... Nf6 {[%clk 0:02:59.6]} 2. g3 {[%clk 0:03:01.1]}
2... g6 {[%clk 0:03:00]} 3. c4 {[%clk 0:03:00.9]} 3... Bg7 {[%clk 0:03:00.6]} 4.
Bg2 {[%clk 0:03:01.5]} 4... d5 {[%clk 0:03:00.1]} 5. cxd5 {[%clk 0:03:01.4]}
5... Nxd5 {[%clk 0:02:59.8]} 6. d4 {[%clk 0:03:02]} 6... O-O {[%clk 0:02:57.5]}
7. O-O {[%clk 0:03:02]} 7... Nc6 {[%clk 0:02:55.8]} 8. e4 {[%clk 0:03:01.7]}
8... Nb6 {[%clk 0:02:54.5]} 9. d5 {[%clk 0:03:01.9]} 9... Na5 {[%clk 0:02:49.8]}
10. Nc3 {[%clk 0:03:02]} 10... c6 {[%clk 0:02:48.2]} 11. Re1 {[%clk 0:03:01.3]}
11... cxd5 {[%clk 0:02:33.3]} 12. exd5 {[%clk 0:02:46.9]} 12... Nac4 {[%clk
0:02:33.3]} 13. a4 {[%clk 0:02:45.5]} 13... Re8 {[%clk 0:02:18.9]} 14. Qe2
{[%clk 0:01:25.4]} 14... Nd6 {[%clk 0:01:59.5]} 15. Bg5 {[%clk 0:01:21.4]} 15...
Nf5 {[%clk 0:01:38.9]} 16. Rad1 {[%clk 0:01:13.2]} 16... h6 {[%clk 0:01:31.6]}
17. Bf4 {[%clk 0:01:09.7]} 17... Bd7 {[%clk 0:01:30.3]} 18. a5 {[%clk 0:01:05]}
18... Na4 {[%clk 0:01:29.8]} 19. Be5 {[%clk 0:00:49]} 19... Nxc3 {[%clk
0:01:19.2]} 20. Bxc3 {[%clk 0:00:48.1]} 20... Bxc3 {[%clk 0:01:13.8]} 21. bxc3
{[%clk 0:00:47.7]} 21... Qxa5 {[%clk 0:01:13.8]} 22. g4 {[%clk 0:00:40.4]} 22...
Nd6 {[%clk 0:01:11.5]} 23. Ne5 {[%clk 0:00:40.3]} 23... Rad8 {[%clk 0:01:01]}
24. Qe3 {[%clk 0:00:32.9]} 24... Kg7 {[%clk 0:00:50.7]} 25. h4 {[%clk
0:00:32.4]} 25... Qb6 {[%clk 0:00:48.7]} 26. Qd3 {[%clk 0:00:27.2]} 26... Qc7
{[%clk 0:00:28.4]} 27. h5 {[%clk 0:00:20.5]} 27... g5 {[%clk 0:00:28.5]} 28. Rf1
{[%clk 0:00:15.5]} 28... Qc8 {[%clk 0:00:28.6]} 29. Qe2 {[%clk 0:00:13.3]} 29...
Bb5 {[%clk 0:00:26.4]} 30. Qf3 {[%clk 0:00:08.3]} 30... Bxf1 {[%clk 0:00:26.1]}
31. Rxf1 {[%clk 0:00:07.9]} 31... e6 {[%clk 0:00:21.5]} 0-1

[Event "*** Titled Tuesday Blitz"]
[Site "Chess.com"]
[Date "2020.10.20"]
[Round "11"]
[White "Sergey85Rodchenkov"]
[Black "MF1966Idrisov"]
[Result "1-0"]
[WhiteElo "2426"]
[BlackElo "2328"]
[TimeControl "180+1"]
[EndTime "12:08:15 PDT"]
[Termination "Sergey85Rodchenkov won by resignation"]

1. e4 {[%clk 0:02:59.4]} 1... c6 {[%clk 0:02:57.5]} 2. d4 {[%clk 0:02:58.4]}
2... d5 {[%clk 0:02:57.1]} 3. exd5 {[%clk 0:02:58.7]} 3... cxd5 {[%clk
0:02:56.9]} 4. c4 {[%clk 0:02:59.1]} 4... Nf6 {[%clk 0:02:54.6]} 5. Nc3 {[%clk
0:02:59.3]} 5... g6 {[%clk 0:02:54.4]} 6. Qb3 {[%clk 0:02:57.6]} 6... Bg7 {[%clk
0:02:52.3]} 7. cxd5 {[%clk 0:02:57]} 7... O-O {[%clk 0:02:52.1]} 8. Be2 {[%clk
0:02:56.3]} 8... Nbd7 {[%clk 0:02:52.1]} 9. Bf3 {[%clk 0:02:54.9]} 9... Nb6
{[%clk 0:02:51.3]} 10. Bg5 {[%clk 0:02:55.2]} 10... Bf5 {[%clk 0:02:48.5]} 11.
Nge2 {[%clk 0:02:54.3]} 11... Bd3 {[%clk 0:02:48]} 12. O-O {[%clk 0:02:52.1]}
12... Bc4 {[%clk 0:02:47.5]} 13. Qa3 {[%clk 0:02:50.1]} 13... Bxd5 {[%clk
0:02:36.6]} 14. Nxd5 {[%clk 0:02:49.5]} 14... Nbxd5 {[%clk 0:02:28.6]} 15. Nc3
{[%clk 0:02:49.4]} 15... Qd7 {[%clk 0:02:18.4]} 16. Rfe1 {[%clk 0:02:38.1]}
16... e6 {[%clk 0:02:17.7]} 17. h4 {[%clk 0:02:27]} 17... b6 {[%clk 0:02:15.2]}
18. Bxf6 {[%clk 0:02:20.4]} 18... Bxf6 {[%clk 0:02:11.1]} 19. h5 {[%clk
0:02:18.6]} 19... Bxd4 {[%clk 0:02:04.6]} 20. Rad1 {[%clk 0:02:17.6]} 20... Bc5
{[%clk 0:01:45.3]} 21. Qb3 {[%clk 0:02:15.5]} 21... Qe7 {[%clk 0:01:29.8]} 22.
Nxd5 {[%clk 0:02:13.4]} 22... Qh4 {[%clk 0:01:28.4]} 23. Ne3 {[%clk 0:02:09.1]}
23... Rad8 {[%clk 0:01:26]} 24. g3 {[%clk 0:02:05.3]} 24... Qg5 {[%clk
0:01:23.9]} 25. Kg2 {[%clk 0:02:03]} 25... Rd4 {[%clk 0:01:12.6]} 26. hxg6
{[%clk 0:01:58.9]} 26... hxg6 {[%clk 0:01:11.7]} 27. Rxd4 {[%clk 0:01:58.3]}
27... Bxd4 {[%clk 0:01:11.3]} 28. Rd1 {[%clk 0:01:51.2]} 28... e5 {[%clk
0:01:06.9]} 29. Nc2 {[%clk 0:01:34.4]} 29... Bc5 {[%clk 0:01:04.9]} 30. Qd3
{[%clk 0:01:27.7]} 30... a5 {[%clk 0:00:56.3]} 31. Bd5 {[%clk 0:01:23.1]} 31...
Kg7 {[%clk 0:00:55.3]} 32. Qf3 {[%clk 0:01:09.1]} 32... f5 {[%clk 0:00:53.4]}
33. Bb3 {[%clk 0:01:02]} 33... Qe7 {[%clk 0:00:49.9]} 34. Qd5 {[%clk 0:00:57.7]}
34... Kf6 {[%clk 0:00:47.1]} 35. Qd7 {[%clk 0:00:55.2]} 35... e4 {[%clk
0:00:42.3]} 36. Qxe7+ {[%clk 0:00:54.6]} 36... Kxe7 {[%clk 0:00:41.8]} 37. Ne3
{[%clk 0:00:54.5]} 37... Kf6 {[%clk 0:00:34.9]} 38. Nd5+ {[%clk 0:00:52.9]}
38... Ke5 {[%clk 0:00:33.6]} 39. Nf4 {[%clk 0:00:52.2]} 39... Kf6 {[%clk
0:00:27]} 40. Rd7 {[%clk 0:00:51.3]} 40... g5 {[%clk 0:00:25.7]} 41. Nd5+ {[%clk
0:00:48.7]} 41... Ke5 {[%clk 0:00:25.6]} 42. Rg7 {[%clk 0:00:38.5]} 42... g4
{[%clk 0:00:23.2]} 43. Nf4 {[%clk 0:00:35.6]} 43... Kd4 {[%clk 0:00:20.5]} 44.
Ne6+ {[%clk 0:00:34.6]} 1-0

[Event "*** Titled Tuesday Blitz"]
[Site "Chess.com"]
[Date "2020.10.20"]
[Round "11"]
[White "Chamal_Gedgafov"]
[Black "BikingBrian"]
[Result "0-1"]
[WhiteElo "2157"]
[BlackElo "2252"]
[TimeControl "180+1"]
[EndTime "12:08:22 PDT"]
[Termination "BikingBrian won on time"]

1. d4 {[%clk 0:03:00.9]} 1... Nf6 {[%clk 0:02:57.6]} 2. c4 {[%clk 0:03:00.5]}
2... g6 {[%clk 0:02:56.4]} 3. Nc3 {[%clk 0:03:00.2]} 3... Bg7 {[%clk 0:02:55.2]}
4. e4 {[%clk 0:02:59.8]} 4... d6 {[%clk 0:02:55.6]} 5. Nf3 {[%clk 0:02:59.9]}
5... O-O {[%clk 0:02:55.9]} 6. Be2 {[%clk 0:03:00.3]} 6... Na6 {[%clk
0:02:56.5]} 7. Be3 {[%clk 0:02:57.6]} 7... Ng4 {[%clk 0:02:50.2]} 8. Bg5 {[%clk
0:02:55.2]} 8... h6 {[%clk 0:02:49.2]} 9. Bh4 {[%clk 0:02:55.1]} 9... g5 {[%clk
0:02:48.7]} 10. Bg3 {[%clk 0:02:54.6]} 10... e5 {[%clk 0:02:46.2]} 11. h4 {[%clk
0:02:44.9]} 11... f5 {[%clk 0:02:37.5]} 12. exf5 {[%clk 0:02:33.2]} 12... Bxf5
{[%clk 0:02:37]} 13. hxg5 {[%clk 0:02:33.1]} 13... hxg5 {[%clk 0:02:35.7]} 14.
Qd2 {[%clk 0:02:29.7]} 14... exd4 {[%clk 0:02:18]} 15. Nxd4 {[%clk 0:02:25.2]}
15... Qf6 {[%clk 0:02:10.4]} 16. Nxf5 {[%clk 0:02:14.1]} 16... Qxf5 {[%clk
0:02:09.6]} 17. O-O-O {[%clk 0:01:55.7]} 17... Ne5 {[%clk 0:01:40.6]} 18. Nd5
{[%clk 0:01:28.4]} 18... Rae8 {[%clk 0:01:36.5]} 19. Rh5 {[%clk 0:01:12.8]}
19... c6 {[%clk 0:00:57.8]} 20. Rxg5 {[%clk 0:00:51.7]} 20... Qd7 {[%clk
0:00:40.9]} 21. Nc3 {[%clk 0:00:42.6]} 21... Nf7 {[%clk 0:00:28.6]} 22. Rh5
{[%clk 0:00:37.4]} 22... Re7 {[%clk 0:00:19.9]} 23. Bd3 {[%clk 0:00:32.2]} 23...
Rfe8 {[%clk 0:00:19.8]} 24. Rdh1 {[%clk 0:00:18.8]} 24... Nc5 {[%clk 0:00:18.9]}
25. Bc2 {[%clk 0:00:16.9]} 25... Ne6 {[%clk 0:00:15.9]} 26. Rh7 {[%clk
0:00:13.6]} 26... Nf8 {[%clk 0:00:12.5]} 27. R7h5 {[%clk 0:00:09.8]} 27... Ne5
{[%clk 0:00:12.6]} 28. Bxe5 {[%clk 0:00:06.1]} 28... Rxe5 {[%clk 0:00:11.9]} 29.
Bh7+ {[%clk 0:00:03.2]} 29... Nxh7 {[%clk 0:00:09]} 30. Rxh7 {[%clk 0:00:02.6]}
30... Qf7 {[%clk 0:00:08.5]} 0-1